Cogmind - Beta 15 @@@ ROGUE MODE // 2025.05.15 @ 07:55:26 Player: Btuck Result: Destroyed by H-77 Assassin with High-powered Shotgun Performance ------------- Evolutions (7) 3500 Regions Visited (10) 2000 Robots Destroyed (39) 195 Value Destroyed (1461) 1461 Prototype IDs (2) 40 Alien Tech Used (0) 0 Bonus (840) 840 TOTAL SCORE: 8036 Bonus ------- Follower Combat Kills 40 Registered with UFD 300 Met Optimus in HQ 500 Cogmind --------- Core Integrity 0/1300 Matter 14/300 Energy 99/100 System Corruption 10% Temperature Cool (0) Movement Core (50) Location -3/Research Parts ------- > --- POWER (2) -------- (None) > --- PROPULSION (5) --- (None) > --- UTILITY (10) ----- Advanced Signal Interpreter > --- WEAPON (4) ------- (None) > --- INVENTORY (5) ---- Fusion Compressor Improved Terrain Scan Processor Wave Gun KE Penetrator Botcube Peak State ------------ > --- POWER ------------ Fusion Compressor > --- PROPULSION ------- Improved Gravmag System Gravmag Array Antigrav System > --- UTILITY ---------- Improved Sensor Array Improved Signal Interpreter Advanced Signal Interpreter Seismic Detector Advanced ECM Suite > --- WEAPON ----------- Assault Rifle Improved KE Penetrator Advanced Assault Cannon Lance > --- INVENTORY -------- Fusion Compressor Wave Gun KE Penetrator Botcube [Rating: 62] Favorites ----------- Power Ion Engine Engine Ion Engine Power Core Light Nuclear Core Propulsion Light Treads Treads Light Treads Leg Carbon-fiber Leg Hover Unit Gravmag Array Utility Large Storage Unit Device Disposable Heat Sink Storage Large Storage Unit Processor Advanced Signal Interpreter Hackware Hacking Suite Weapon Assault Rifle Energy Gun Heavy Laser Energy Cannon Subdweller Beam Cannon Ballistic Gun Assault Rifle Ballistic Cannon Advanced Assault Cannon Special Weapon Junk Cannon Piercing Weapon Lance Build | -11 -10 -10 -8 -6 -6 -6 -5 -4 -4 -3 ------- Run | Yrd Mat Sub Scr Fac Low Low Fac Fac Ext Res Slots Evolved 14 | . . . . 8 . . 2 2 . 2 Power 1 | . . . . . . . . . . 1 Propulsion 3 | . . . . 2 . . . . . 1 Utility 8 | . . . . 4 . . 2 2 . . Weapon 2 | . . . . 2 . . . . . . Parts Attached 50 | 7 7 3 4 2 7 4 13 1 . 2 Power 6 | 1 1 . . . 2 1 1 . . . Engine 4 | 1 1 . . . 1 1 . . . . Core 2 | . . . . . 1 . 1 . . . Reactor . | . . . . . . . . . . . Propulsion 11 | 2 1 . 3 1 1 . 3 . . . Treads 7 | 2 1 . 3 1 . . . . . . Leg 1 | . . . . . 1 . . . . . Wheel . | . . . . . . . . . . . Hover 3 | . . . . . . . 3 . . . Flight . | . . . . . . . . . . . Utility 15 | 2 1 1 . 1 . 1 6 1 . 2 Device 9 | 1 . 1 . . . 1 4 1 . 1 Storage 2 | 1 1 . . . . . . . . . Processor 3 | . . . . . . . 2 . . 1 Hackware 1 | . . . . 1 . . . . . . Protection . | . . . . . . . . . . . Artifact . | . . . . . . . . . . . Weapon 18 | 2 4 2 1 . 4 2 3 . . . Energy Gun 5 | 2 1 . . . 1 1 . . . . Energy Cannon 2 | . 1 1 . . . . . . . . Ballistic Gun 6 | . 2 1 . . 1 1 1 . . . Ballistic Cannon 3 | . . . . . 2 . 1 . . . Launcher . | . . . . . . . . . . . Special Weapon 1 | . . . 1 . . . . . . . Impact Weapon . | . . . . . . . . . . . Slashing Weapon . | . . . . . . . . . . . Piercing Weapon 1 | . . . . . . . 1 . . . Special Melee Weapon . | . . . . . . . . . . . Unidentified Prototypes 2 | . . . 1 . . . 1 . . . Corrupted Parts 1 | . . . 1 . . . . . . . System Corruption 4 | . . . 4 . . . . . . . Parts Lost 25 | . . . 2 . 12 6 3 1 . 1 Power 5 | . . . . . 2 2 1 . . . Propulsion 7 | . . . 2 . 3 1 . 1 . . Utility 6 | . . . . . 3 . 2 . . 1 Weapon 7 | . . . . . 4 3 . . . . Highest Loss Streak 12 | . . . 1 . 12 3 1 1 . 1 To Critical Strikes 2 | . . . . . 1 1 . . . . Average Backups 9 | . 5 8 13 9 7 5 3 3 4 4 Power 1 | . 1 2 2 2 . . 1 1 1 1 Propulsion . | . . 1 1 . . . . . . . Utility 2 | . 1 2 3 2 2 1 . . 1 1 Weapon 4 | . 1 3 5 5 4 3 1 2 2 2 Tool/Special . | . . . . . . . . . . . Unused Backups 6 | . . . . . . 2 . . . 4 Power 1 | . . . . . . . . . . 1 Propulsion . | . . . . . . . . . . . Utility 3 | . . . . . . 2 . . . 1 Weapon 2 | . . . . . . . . . . 2 Tool/Special . | . . . . . . . . . . . Average Slot Usage (%) 71 | . 99 100 92 73 38 31 59 51 . . Engine 9 | . 14 14 14 6 1 5 . . . . Treads 17 | . 27 28 27 25 6 . . . . . Hover 1 | . . . . . . . 12 13 . . Device 10 | . 14 14 14 12 3 5 13 9 . . Storage 9 | . 14 14 14 6 6 5 . . . . Processor 1 | . . . . . . . 8 9 . . Energy Gun 1 | . 12 . . . 1 6 . . . . Energy Cannon 4 | . 7 4 7 5 1 . . . . . Ballistic Gun 7 | . 7 23 7 5 5 5 8 9 . . Special Weapon 3 | . . . 6 6 1 . . . . . Peak Build Rating 62 | 7 7 11 26 39 39 18 62 62 3 12 Average Rating 19 | 5 6 9 18 36 16 17 49 50 3 3 On Entrance 15 | . 7 7 11 26 39 14 2 56 3 3 Naked Turns 431 | . . . . . . 16 5 29 96 285 Heaviest Build 53 | 13 31 38 40 53 53 36 27 22 . 1 Greatest Support 82 | 40 40 40 48 82 82 15 41 3 3 3 Greatest Overweight (x) 14 | 3 1 . 1 1 14 11 8 7 . . Average Overweight (x) . | . . . . . 3 8 . 3 . . Largest Inventory Capacity 15 | 8 15 15 15 15 15 15 5 5 5 5 Average Capacity 13 | 7 14 15 15 15 15 14 5 5 5 5 Most Carried 15 | 1 8 11 15 14 12 8 5 5 5 5 Average Carried 9 | . 5 8 13 10 8 7 4 4 5 4 Final Capacity 15 | 8 15 15 15 15 15 5 5 5 5 5 Final Carried 15 | 1 7 11 15 11 8 5 4 5 5 5 Class Distribution -------------------- 58% | Mutant 27% | Scavenger-Mutant 9% | Skirmisher 4% | Scavenger-Gunner Dominant Class ---------------- Mutant | -10/Materials Scavenger-Mutant | -10/Subcaves Scavenger-Mutant | -8/Scraptown Scavenger-Gunner | -6/Factory Mutant | -6/Lower Caves Mutant | -6/Lower Caves Skirmisher | -5/Factory Skirmisher | -4/Factory Mutant | -4/Extension Mutant | -3/Research Resources | -11 -10 -10 -8 -6 -6 -6 -5 -4 -4 -3 ----------- Run | Yrd Mat Sub Scr Fac Low Low Fac Fac Ext Res Matter Collected 1095 | 269 261 119 55 . 163 92 125 . 4 7 Remotely . | . . . . . . . . . . . Salvage Created 1800 | 105 524 88 323 130 445 76 109 . . . Parts 63 | 6 24 4 1 2 17 3 6 . . . Haulers Intercepted 2 | . 1 . . 1 . . . . . . Recyclers Shooed 1 | . 1 . . . . . . . . . Parts Field Recycled . | . . . . . . . . . . . Retrieved Matter . | . . . . . . . . . . . Parts Self-Destructed 25 | . . 7 . . 15 3 . . . . Prevented 3 | . . . . . 3 . . . . . Kills | -11 -10 -10 -8 -6 -6 -6 -5 -4 -4 -3 ------- Run | Yrd Mat Sub Scr Fac Low Low Fac Fac Ext Res Combat Hostiles Destroyed 32 | . 9 2 6 1 9 3 2 . . . Guns 8 | . . 2 . . 3 3 . . . . Cannons 16 | . 8 . 2 . 4 . 2 . . . Classes Destroyed 14 | 2 4 1 3 . 4 . . . . . Worker 1 | . 1 . . . . . . . . . Tunneler 2 | 2 . . . . . . . . . . Hauler 2 | . 1 . . 1 . . . . . . Recycler 1 | 1 . . . . . . . . . . Watcher 1 | . 1 . . . . . . . . . Swarmer 5 | . . . . . 2 3 . . . . Grunt 14 | . 9 1 . 1 3 . . . . . Brawler 1 | . . . . . 1 . . . . . Duelist 2 | . . . . . 2 . . . . . Sentry 3 | . . . . . 1 . 2 . . . Subdweller 1 | . . 1 . . . . . . . . Federalist 1 | . . . 1 . . . . . . . Ranger 1 | . . . 1 . . . . . . . Scrapper 4 | . . . 4 . . . . . . . Best Kill Streak 6 | 3 2 1 2 2 6 2 2 . . . Combat Bots Only 6 | . 2 1 2 1 6 2 2 . . . Max Kills in Single Turn 2 | 1 2 1 1 1 2 1 1 . . . Gunslinging . | . . . . . . . . . . . Exploded . | . . . . . . . . . . . Melee . | . . . . . . . . . . . Uniques/NPCs Destroyed . | . . . . . . . . . . . Combat | -11 -10 -10 -8 -6 -6 -6 -5 -4 -4 -3 -------- Run | Yrd Mat Sub Scr Fac Low Low Fac Fac Ext Res Hostile Shots Fired 473 | . 38 9 31 1 88 49 53 20 72 112 Missed 180 | . 11 3 9 . 24 14 20 12 33 54 Hits 293 | . 27 6 22 1 64 35 33 8 39 58 Melee 10 | . . . . . 10 . . . . . Projectile 283 | . 27 6 22 1 54 35 33 8 39 58 AOE 1 | . . . . . . . 1 . . . Critical Strikes 15 | . . . 3 . 2 1 2 . 3 4 Damage Taken 6085 | . 358 136 406 19 1328 589 726 211 986 1326 Core 2939 | . 74 . 88 . 130 112 225 22 986 1302 Absorbed by Shields . | . . . . . . . . . . . Core Remaining (%) 59 | 100 . . 35 . . 71 77 . 12 . Volleys Fired 106 | 6 32 9 14 4 23 10 8 . . . Largest 3 | 2 2 2 1 1 3 3 2 . . . Hottest 158 | 80 110 50 . . 153 158 60 . . . Shots Fired 198 | 12 63 18 14 4 42 29 16 . . . Gun 120 | 12 35 18 . . 18 29 8 . . . Cannon 54 | . 28 . . . 18 . 8 . . . Launcher . | . . . . . . . . . . . Special 24 | . . . 14 4 6 . . . . . Kinetic 80 | . 8 18 . . 27 11 16 . . . Thermal 94 | 12 55 . . . 9 18 . . . . Explosive . | . . . . . . . . . . . Electromagnetic . | . . . . . . . . . . . Impact 24 | . . . 14 4 6 . . . . . Robot Hit Streak 13 | 5 9 12 13 10 3 3 11 . . . Robot Miss Streak 5 | 2 4 2 1 . 3 5 2 . . . Penetration Max . | . . . . . . . . . . . Secondary Targets 1 | . . . . . . 1 . . . . Max Gunslinging Chain 1 | . . . . . . 1 . . . . Shots Hit Robots 122 | 8 43 13 11 3 21 9 14 . . . Core Hits 49 | 4 17 4 2 . 10 5 5 . . 2 Critical Kills 2 | . . . 1 . 1 . . . . . Critical Parts Destroyed 2 | . . . 2 . . . . . . . Critical Strikes 8 | . 2 . 3 . 1 1 1 . . . Burn 3 | . 2 . . . . 1 . . . . Destroy 1 | . . . . . 1 . . . . . Blast 1 | . . . . . . . 1 . . . Smash 3 | . . . 3 . . . . . . . Melee Attacks 9 | . . . . . . . 7 2 . . Impact . | . . . . . . . . . . . Slashing . | . . . . . . . . . . . Piercing 9 | . . . . . . . 7 2 . . Sneak Attacks . | . . . . . . . . . . . Combat Hostiles . | . . . . . . . . . . . Follow-up Attacks . | . . . . . . . . . . . Damage Inflicted 3403 | 87 704 156 1006 226 670 169 298 . . 87 Guns 970 | 87 325 156 . . 144 169 89 . . . Cannons 920 | . 379 . . . 332 . 209 . . . Explosions . | . . . . . . . . . . . Melee . | . . . . . . . . . . . Ramming 87 | . . . . . . . . . . 87 Kinetic 863 | . 35 156 . . 337 37 298 . . . Thermal 1027 | 87 669 . . . 139 132 . . . . Explosive . | . . . . . . . . . . . Electromagnetic . | . . . . . . . . . . . Impact 1426 | . . . 1006 226 194 . . . . . Slashing . | . . . . . . . . . . . Piercing . | . . . . . . . . . . . Highest Corruption 10 | . . . 4 . 4 4 5 . . 10 Average Corruption 4 | . . . 4 . 4 4 3 . . 5 Corruption Purged . | . . . . . . . . . . . Corruption Blocked . | . . . . . . . . . . . Effects 40 | . . . 4 . 15 15 1 . . 5 Message Errors 12 | . . . 2 . 4 4 . . . 2 Matter Fused 12 | . . . 1 . 2 6 . . . 3 Heat Flow Errors 4 | . . . 1 . 1 2 . . . . Energy Discharges 5 | . . . . . 3 2 . . . . Data Loss (minor) 3 | . . . . . 2 . 1 . . . Data Loss (major) 1 | . . . . . 1 . . . . . Misfires 2 | . . . . . 1 1 . . . . Weapon Failures 1 | . . . . . 1 . . . . . Overload Shots . | . . . . . . . . . . . Overflow Damage 474 | . . . 373 46 53 . . . . 2 Projectiles 472 | . . . 373 46 53 . . . . . Explosions . | . . . . . . . . . . . Melee 2 | . . . . . . . . . . 2 Knockbacks 9 | . . . 6 1 2 . . . . . Impact 8 | . . . 6 1 1 . . . . . Kinetic 1 | . . . . . 1 . . . . . Secondary . | . . . . . . . . . . . Self-Inflicted Damage 41 | . . . . . . . . . . 41 Shots . | . . . . . . . . . . . Rammed 10 | . . . . . . . . . . 10 Targets Rammed 10 | . . . . . . . . . . 10 Kicked . | . . . . . . . . . . . Crushed . | . . . . . . . . . . . Highest Temperature 372 | 36 372 . 124 . 165 233 9 . . . Average Temperature 104 | 20 140 . 42 . 54 96 5 . . . Received Heat Transfer 1177 | . 180 54 291 9 360 63 39 33 45 103 Effects 5 | . 5 . . . . . . . . . Interference 3 | . 3 . . . . . . . . . Damage (minor) 2 | . 2 . . . . . . . . . Siege Activations . | . . . . . . . . . . . Martial Activations . | . . . . . . . . . . . Shielding Activations . | . . . . . . . . . . . Robots Disrupted . | . . . . . . . . . . . Combat Hostiles . | . . . . . . . . . . . Robots Corrupted 8 | . . . 4 2 2 . . . . . Combat Hostiles 7 | . . . 4 1 2 . . . . . Parts Fried 8 | . . . 4 2 2 . . . . . Impact Corruptions 16 | . . . 10 3 2 . . . . 1 Robots Melted 1 | . 1 . . . . . . . . . Combat Hostiles 1 | . 1 . . . . . . . . . Parts Melted 5 | . 4 . 1 . . . . . . . Heat Transferred 2457 | 200 1739 . . . 185 333 . . . . Parts Sabotaged . | . . . . . . . . . . . Parts Stolen . | . . . . . . . . . . . Parts Stripped . | . . . . . . . . . . . Power Chain Reactions . | . . . . . . . . . . . Alert | -11 -10 -10 -8 -6 -6 -6 -5 -4 -4 -3 ------- Run | Yrd Mat Sub Scr Fac Low Low Fac Fac Ext Res Maximum Alert Level . | . . . . . . . . . . . Low Security (%) 100 | 100 100 . . 100 . . 100 100 100 100 Level 1 . | . . . . . . . . . . . Level 2 . | . . . . . . . . . . . Level 3 . | . . . . . . . . . . . Level 4 . | . . . . . . . . . . . Level 5 . | . . . . . . . . . . . High Security . | . . . . . . . . . . . Max Security . | . . . . . . . . . . . Peak Influence 105 | 5 105 . . 32 . . 50 30 14 85 Initial 14 | . . . . . . . . . 14 . Average 17 | 1 36 . . 4 . . 7 . 3 26 Influence Increases 971 | 15 250 30 . 42 237 70 145 32 . 150 Destroy 0b10 Robot/C 540 | . 180 20 . 20 220 60 40 . . . Destroy 0b10 Robot/NC 35 | 15 15 . . 5 . . . . . . Destroy Leader 86 | . 34 10 . 2 10 10 20 . . . Allied During Kill 7 | . . . . . 7 . . . . . Successful Hack 6 | . 6 . . . . . . . . . Disable Machine 60 | . . . . 15 . . 45 . . . Destroy Structure 12 | . . . . . . . 10 2 . . Partial Spotted 45 | . . . . . . . 30 . . 15 Lose Combat Pursuer 180 | . 15 . . . . . . 30 . 135 Influence Decreases 946 | 15 249 31 . 20 259 70 145 2 30 125 Entered New Map 26 | . . 1 . . 9 . . . 16 . Time Decay 786 | 15 249 30 . 20 140 60 141 2 14 115 Lost Part 114 | . . . . . 90 10 4 . . 10 Lost Ally 20 | . . . . . 20 . . . . . Squads Dispatched 13 | . 1 . . 1 . 1 2 2 . 6 Investigation 2 | . 1 . . . . . . . . 1 Extermination 4 | . . . . . . . 2 1 . 1 Reinforcement 6 | . . . . 1 . . . 1 . 4 Assault 1 | . . . . . . 1 . . . . Garrison . | . . . . . . . . . . . Intercept . | . . . . . . . . . . . Searches Triggered . | . . . . . . . . . . . Construction Impeded . | . . . . . . . . . . . Haulers Reinforced 2 | . . . . 1 . . . . . 1 Active Scanning Responses . | . . . . . . . . . . . Cargo Convoy Interrupts . | . . . . . . . . . . . Stealth | -11 -10 -10 -8 -6 -6 -6 -5 -4 -4 -3 --------- Run | Yrd Mat Sub Scr Fac Low Low Fac Fac Ext Res Distress Signals . | . . . . . . . . . . . Communications Jammed . | . . . . . . . . . . . Distress Signals . | . . . . . . . . . . . Times Spotted 93 | . 13 2 13 1 11 10 4 6 9 24 Peak Tracking Total 12 | . 3 1 2 1 9 7 2 6 9 12 Tactical Retreats 6 | . 1 . 1 . . . . 1 . 3 Traps | -11 -10 -10 -8 -6 -6 -6 -5 -4 -4 -3 ------- Run | Yrd Mat Sub Scr Fac Low Low Fac Fac Ext Res Traps Triggered 6 | . 3 . . . . . . . . 3 Indirectly . | . . . . . . . . . . . Trap Hack Attempts . | . . . . . . . . . . . Triggered . | . . . . . . . . . . . Disarmed . | . . . . . . . . . . . Reprogrammed . | . . . . . . . . . . . Reused . | . . . . . . . . . . . Traps Extracted . | . . . . . . . . . . . Installed . | . . . . . . . . . . . Triggered . | . . . . . . . . . . . Machines | -11 -10 -10 -8 -6 -6 -6 -5 -4 -4 -3 ---------- Run | Yrd Mat Sub Scr Fac Low Low Fac Fac Ext Res Machines Disabled 6 | . . . 2 1 . . 3 . . . Max in Single Turn 1 | . . . 1 1 . . 1 . . . Machines Repaired . | . . . . . . . . . . . Machines Dismantled . | . . . . . . . . . . . Machines Sabotaged . | . . . . . . . . . . . Overloaded Fab Kills . | . . . . . . . . . . . Hacking | -11 -10 -10 -8 -6 -6 -6 -5 -4 -4 -3 --------- Run | Yrd Mat Sub Scr Fac Low Low Fac Fac Ext Res Machines Accessed 14 | . 4 . 10 . . . . . . . Terminals 4 | . 4 . . . . . . . . . Fabricators . | . . . . . . . . . . . Repair Stations . | . . . . . . . . . . . Recycling Units . | . . . . . . . . . . . Scanalyzers . | . . . . . . . . . . . Garrison Access . | . . . . . . . . . . . Total Hacks 65 | . 8 . 57 . . . . . . . Successful 58 | . 1 . 57 . . . . . . . Failed 7 | . 7 . . . . . . . . . Catastrophic 2 | . 2 . . . . . . . . . Database Lockouts . | . . . . . . . . . . . Manual 8 | . 8 . . . . . . . . . Terminals 8 | . 8 . . . . . . . . . Fabricators . | . . . . . . . . . . . Repair Stations . | . . . . . . . . . . . Recycling Units . | . . . . . . . . . . . Scanalyzers . | . . . . . . . . . . . Garrison Access . | . . . . . . . . . . . Terminal Hacks 58 | . 1 . 57 . . . . . . . Record 50 | . . . 50 . . . . . . . Robot Analysis 8 | . 1 . 7 . . . . . . . Fabricator Hacks . | . . . . . . . . . . . Repair Station Hacks . | . . . . . . . . . . . Recycling Unit Hacks . | . . . . . . . . . . . Scanalyzer . | . . . . . . . . . . . Garrison Access Hacks . | . . . . . . . . . . . Unauthorized Hacks . | . . . . . . . . . . . Terminals . | . . . . . . . . . . . Fabricators . | . . . . . . . . . . . Repair Stations . | . . . . . . . . . . . Recycling Units . | . . . . . . . . . . . Scanalyzers . | . . . . . . . . . . . Garrison Access . | . . . . . . . . . . . Data Cores Recovered . | . . . . . . . . . . . Used . | . . . . . . . . . . . Hacking Detections 3 | . 3 . . . . . . . . . Full Trace Events 1 | . 1 . . . . . . . . . Feedback Events . | . . . . . . . . . . . Feedback Blocked . | . . . . . . . . . . . Robot Schematics Acquired . | . . . . . . . . . . . Robots Built . | . . . . . . . . . . . Authchips . | . . . . . . . . . . . Time . | . . . . . . . . . . . Total Robot Build Rating . | . . . . . . . . . . . Part Schematics Acquired . | . . . . . . . . . . . Parts Built . | . . . . . . . . . . . Authchips . | . . . . . . . . . . . Time . | . . . . . . . . . . . Total Part Build Rating . | . . . . . . . . . . . Parts Repaired . | . . . . . . . . . . . Time . | . . . . . . . . . . . Parts Recycled . | . . . . . . . . . . . Recycled Matter . | . . . . . . . . . . . Retrieved Matter . | . . . . . . . . . . . Retrieved Components . | . . . . . . . . . . . Parts Scanalyzed . | . . . . . . . . . . . Part Schematics Acquired . | . . . . . . . . . . . Parts Damaged . | . . . . . . . . . . . Bothacking | -11 -10 -10 -8 -6 -6 -6 -5 -4 -4 -3 ------------ Run | Yrd Mat Sub Scr Fac Low Low Fac Fac Ext Res Used RIF Installer . | . . . . . . . . . . . Robots Hacked . | . . . . . . . . . . . Non-combat . | . . . . . . . . . . . Combat . | . . . . . . . . . . . Robot Hacks Applied . | . . . . . . . . . . . Relay Couplers Released . | . . . . . . . . . . . Fabnet Peak Effective % . | . . . . . . . . . . . Robots Rewired 2 | . . . . . 2 . . . . . Allies Hacked . | . . . . . . . . . . . Hacks Repelled . | . . . . . . . . . . . Allies | -11 -10 -10 -8 -6 -6 -6 -5 -4 -4 -3 -------- Run | Yrd Mat Sub Scr Fac Low Low Fac Fac Ext Res Total Allies 2 | . . . . . 2 . . . . . Largest Group 2 | . . . . . 2 1 . . . . Highest-Rated Group 58 | . . . . . 58 29 . . . . Highest-Rated Ally 29 | . . . . . 29 29 . . . . Total Orders . | . . . . . . . . . . . Ally Attacks 9 | . . . . . 9 . . . . . Total Damage 77 | . . . . . 77 . . . . . Kills 2 | . . . . . 2 . . . . . Allies Corrupted . | . . . . . . . . . . . Allies Melted 10 | . . . 10 . . . . . . . Intel | -11 -10 -10 -8 -6 -6 -6 -5 -4 -4 -3 ------- Run | Yrd Mat Sub Scr Fac Low Low Fac Fac Ext Res Active Infowar (turns) 1700 | 30 358 138 . 121 180 . 604 264 . 5 Sensors 698 | . . . . . . . 429 264 . 5 Seismic 1350 | 30 358 138 . 121 180 . 523 . . . ECM 143 | . . . . . . . 143 . . . Robot Analysis Total 8 | . 1 . 7 . . . . . . . Derelict Logs Recovered 2 | . . . 2 . . . . . . . Drone Launches . | . . . . . . . . . . . Drone Recoveries . | . . . . . . . . . . . Exploration | -11 -10 -10 -8 -6 -6 -6 -5 -4 -4 -3 ------------- Run | Yrd Mat Sub Scr Fac Low Low Fac Fac Ext Res Turns Passed 7813 | 122 720 192 3727 124 878 639 655 293 96 367 Spaces Moved 4768 | 59 352 97 2208 71 293 132 560 131 191 674 Core 1411 | 4 . . . . 91 130 190 131 191 674 Treads 2904 | 55 352 97 2208 71 121 . . . . . Legs 83 | . . . . . 81 2 . . . . Wheels . | . . . . . . . . . . . Hover 370 | . . . . . . . 370 . . . Flight . | . . . . . . . . . . . Fastest Speed 50 | 50 160 160 150 145 145 50 50 50 50 50 Average Speed 150 | 158 160 160 162 154 273 454 100 217 50 50 Slowest Speed 750 | 200 240 160 240 200 750 600 450 400 50 50 Overloaded Moves . | . . . . . . . . . . . Propulsion Burnouts . | . . . . . . . . . . . Robots Hopped . | . . . . . . . . . . . Potential Cave-ins . | . . . . . . . . . . . Cave-ins Triggered . | . . . . . . . . . . . Exploration Rate (%) 30 | 5 71 9 93 2 59 20 7 7 43 21 Regions Visited 10 Branch Regions 5 Pre-discovered Areas 1 | . . . 1 . . . . . . . Known Exits Taken 2 | . . . 1 . . . 1 . . . Unknown Exits Taken 8 | 1 1 1 . 1 1 1 . 1 1 . Scrap Searched 8 | . . 2 6 . . . . . . . Spaces Dug 5 | . . . . . . . 4 1 . . Terrain Destroyed 17 | . . . 2 . 9 . 5 1 . . Melee 5 | . . . . . . . 4 1 . . Projectile 12 | . . . 2 . 9 . 1 . . . AOE . | . . . . . . . . . . . Terrain Rammed . | . . . . . . . . . . . Walls Destroyed . | . . . . . . . . . . . Machines Disabled . | . . . . . . . . . . . Actions | -11 -10 -10 -8 -6 -6 -6 -5 -4 -4 -3 --------- Run | Yrd Mat Sub Scr Fac Low Low Fac Fac Ext Res Total 5173 | 72 444 115 2328 81 331 146 628 135 190 703 Wait 171 | . 39 3 95 . 1 1 31 1 . . Move 4758 | 58 351 96 2207 70 292 131 559 130 190 674 Hop . | . . . . . . . . . . . Pick Up 21 | 1 5 3 3 1 . . 7 . . 1 Fast Attach 32 | 7 4 1 2 1 2 3 9 1 . 2 Attach 17 | . 1 . 1 5 5 . 5 . . . Detach 9 | . 4 1 2 . 1 . . 1 . . Swap 8 | . 3 2 2 . . 1 . . . . Drop 10 | . 5 . 2 . . . 2 . . 1 Fire 106 | 6 32 9 14 4 23 10 8 . . . Melee 9 | . . . . . . . 7 2 . . Ram 10 | . . . . . . . . . . 10 Kick . | . . . . . . . . . . . Crush . | . . . . . . . . . . . Escape Stasis 15 | . . . . . . . . . . 15 Rewire 7 | . . . . . 7 . . . . . Trap . | . . . . . . . . . . . Miscellaneous . | . . . . . . . . . . . Route ------- -11/Scrapyard -10/Materials (discovered 5 exits: [*Mat x3] / [*Min] / [*Sub]) -10/Subcaves -8/Scraptown (discovered 2 exits: *Fac x2) -6/Factory -6/Lower Caves -6/Lower Caves -5/Factory -4/Factory -4/Extension (discovered 2 exits: *Res / [*Cet]) -3/Research (discovered 1 exit: [*Qua]) History --------- Turn | Location | Event 8 | -11/Scrapyard | Discovered new exit (range 16) 123 | -11/Scrapyard | Entered Materials 318 | -10/Materials | Build established: Mutant 320 | -10/Materials | Discovered new exit (range 3) 571 | -10/Materials | Discovered new exit (range 16) 728 | -10/Materials | Discovered new exit (range 12) 795 | -10/Materials | Discovered new exit (range 16) 827 | -10/Materials | Discovered new exit (range 6) 843 | -10/Materials | Entered Subcaves 844 | -10/Subcaves | Approached by a straggling Scientist 1024 | -10/Subcaves | Scientist uncovered a shortcut to Scraptown 1035 | -10/Subcaves | Entered Scraptown 1211 | -8/Scraptown | Build established: Scavenger-Mutant 1230 | -8/Scraptown | Visited UFD Registry 1252 | -8/Scraptown | Visited The Evicted 1300 | -8/Scraptown | Visited Symbiants 1376 | -8/Scraptown | Visited Bundlers 1484 | -8/Scraptown | Visited Assassins FH 1511 | -8/Scraptown | Visited Cyclists 1766 | -8/Scraptown | Visited Fellowship of the Rings 1802 | -8/Scraptown | Visited Comm Corps 2154 | -8/Scraptown | Discovered new exit (range 6) 2275 | -8/Scraptown | Scanned Subdweller tech in exchange for log data 2280 | -8/Scraptown | Learned location of Warlord (-4) 2282 | -8/Scraptown | Learned Factory terminal intel 2864 | -8/Scraptown | Registered with UFD as "Thundermech" 2920 | -8/Scraptown | Visited LU-1G1's Boring Crew 3008 | -8/Scraptown | Visited Junk Cannon Lab 3044 | -8/Scraptown | Found Prototype Special Weapon 3044 | -8/Scraptown | Identified Junk Cannon 3081 | -8/Scraptown | Visited Abandonware Association 3100 | -8/Scraptown | Learned abandonware demo "ERRANTS.EXE" 3126 | -8/Scraptown | Received an X-ray algorithm 3142 | -8/Scraptown | Visited Cartography Club 3188 | -8/Scraptown | Visited Analyses Database 3350 | -8/Scraptown | Build established: Mutant 3380 | -8/Scraptown | Visited Observation Area 3468 | -8/Scraptown | Visited Botcube Research 3480 | -8/Scraptown | Found Botcube 3982 | -8/Scraptown | Entered Cyclist Reading Room 4159 | -8/Scraptown | Met Optimus 4159 | -8/Scraptown | Accepted into 0bPrime 4295 | -8/Scraptown | Civil war broke out across Scraptown 4302 | -8/Scraptown | Visited Research Penetration Think Tank 4378 | -8/Scraptown | Core integrity fell below 50% 4395 | -8/Scraptown | Lost 3 allies 4585 | -8/Scraptown | Lost 7 allies 4602 | -8/Scraptown | Identified exit to Factory 4646 | -8/Scraptown | Optimus destroyed in the chaos of civil war 4762 | -8/Scraptown | Entered Factory 4762 | -6/Factory | Evolved 8 slots: Propulsion x2, Utility x4, Weapon x2 4763 | -6/Factory | Loaded intel: 22 terminal locations 4789 | -6/Factory | Discovered new exit (range 9) 4886 | -6/Factory | Entered Lower Caves 5063 | -6/Lower Caves | Attracted the attention of an 0b10 outpost 5074 | -6/Lower Caves | Build established: Scavenger-Gunner 5167 | -6/Lower Caves | Lost 12 parts (2p3n3u4w) 5397 | -6/Lower Caves | Build established: Mutant 5668 | -6/Lower Caves | Discovered new exit (range 11) 5764 | -6/Lower Caves | Entered another Lower Caves area 5764 | -6/Lower Caves | Accompanied by 1 ally 5834 | -6/Lower Caves | Lost 3 parts (1p1n1w) 6081 | -6/Lower Caves | Discovered new exit (range 5) 6382 | -6/Lower Caves | Attracted the attention of an 0b10 outpost 6387 | -6/Lower Caves | Released all parts (2) 6403 | -6/Lower Caves | Entered Factory 6403 | -5/Factory | Evolved 2 slots: Utility x2 6417 | -5/Factory | Lost 3 parts (1p2w) 6474 | -5/Factory | Discovered new exit (range 12) 6924 | -5/Factory | Build established: Skirmisher 7055 | -5/Factory | Identified exit to Factory 7058 | -5/Factory | Entered another Factory area 7058 | -4/Factory | Evolved 2 slots: Utility x2 7322 | -4/Factory | Released all parts (10) 7344 | -4/Factory | Discovered new exit (range 16) 7351 | -4/Factory | Entered Extension 7389 | -4/Extension | Spotted B-86 Titan 7393 | -4/Extension | Spotted B-86 Titan 7405 | -4/Extension | Core integrity fell below 50% 7438 | -4/Extension | Core integrity fell below 20% 7438 | -4/Extension | Discovered new exit (range 16) 7439 | -4/Extension | Discovered new exit (range 15) 7447 | -4/Extension | Entered Research 7447 | -3/Research | Evolved 2 slots: Power x1, Propulsion x1 7625 | -3/Research | Build established: Mutant 7695 | -3/Research | Core integrity fell below 50% 7780 | -3/Research | Core integrity fell below 20% 7780 | -3/Research | System corruption reached 10% 7812 | -3/Research | Discovered new exit (range 8) 7814 | -3/Research | Destroyed by H-77 Assassin with High-powered Shotgun Last Messages --------------- 07740_ Destabilizing: Short circuit. 07740_ P-80 Master resets P-80 Master, system corruption cleaned. 07746_ Broken Adv. Sensor Array destroyed. 07757_ System corrupted: Matter fused (-8). 07783_ System corrupted: Matter fused (-7). 07804_ MSKXNV2OFMR,JDHJL7 CHKJ 07810_ Triggered Alarm Trap. 07810_ An alarm sounds. 07810_ ALERT: Alarm triggered, dispatching investigation squad. 07810_ U-05 Engineer lays Concrete. 07810_ ALERT: Hostiles spotted, dispatching reinforcements to Terminal R012. 07812_ U-05 Engineer lays Concrete. 07812_ EXIT=FOUND 07812_ Penetrated by Slug. 07812_ Slug penetrates Door. 07814_ Penetrated by Slug. [Achievement: This Is Interesting...] Map ----- +----------------------------------------------------+ | # #??# ????????# # [ #?????????????? | | # #??# ""????????# # """#?????????????? | | # #??#[ """ ??????# + """#?????????????? | | #??# """ "????+ # """#?????????????? | | #??# """ "????# # #?????????????? | | #??# """ ""???# #? #?????????????? | | !#??# """ """??# #? #?????????????? | | #??# """ """ # #??#######?????????????? | | ]! #### # #??????????????????????? | | ]! + # #??????????????????????? | | ################# #??????????????????????? | | #???????????????# #??????????????????????? | | #???????????????# #??????????????????????? | | #####???????????????# #??????????????????????? | | #???????????????????# #??????????????????????? | | #???????????????????# #####+############?????? | | ##???????????????????+ ?????? | | ?????????????????????# ????? | | ?????????????????????# ????? | | ?????????????????????# ????? | | ?????????????##########+##### #########???????? | | ????????????## # #???????????????? | | ????????????# Y # #???????????????? | | ?????????????# # +???????????????? | | ?????????????# g g # #???????????????? | | ?????????????# h g @ # #???????????????? | | ?????????????# h g + #???????????????? | | ?????????????#################"###???????????????? | | ?????????????????????????????????????????????????? | | ?????????????????????????????????????????????????? | | ?????????????????????????????????????????????????? | | ?????????????????????????????????????????????????? | | ?????????????????????????????????????????????????? | | ?????????????????????????????????????????????????? | | ?????????????????????????????????????????????????? | | ?????????????????????????????????????????????????? | | ?????????????????????????????????????????????????? | | | | | | | | | | | | | | | | | | | | | | | | | | | +----------------------------------------------------+ Best States ------------- Heat Dissipation 56 Coolant Potential 50 Energy Generation 25 Energy Capacity 250 Matter Stores 300 Matter Capacity 300 Sight Range 16 Robot Scan Range 16 Terrain Scan Density 10 ECM Strength 2 Evasion (%) 54 Recoil Reduction 6 Offensive Hacking 10 Item Schematics ----------------- None Robot Schematics ------------------ None Fabricated ------------ Nothing Repaired ---------- Nothing Alien Tech Used ----------------- None Achievements -------------- Streaker This Is Interesting... Challenges ------------ None Game ------ Seed SubdwellerAssaultSuit Manual? 0 Play Time 01:20:51 Cumulative 61.8 hours Start 2025.05.14 @ 16:44:55 End 2025.05.15 @ 07:55:26 Sessions 5 Manual Loads 0 Difficulty Rogue Special Mode None Game No. 87 Rogue 87 Adventurer 0 Explorer 0 Win Type - Total 1 Types 1/0/0/0/0/0/0/0/0/0 Lore% 31 Gallery% 38 Achievement% 37 Wizard Run 0 Options --------- Layout 1 ASCII 0 Keyboard 1 Movement Numpad Keybinds 0 Fullscreen 1 Font 32/Smallcaps Map View 50x35 Zoom Use 0% Tactical HUD 1 Map Filters NONE Filters NONE Steam 1 RUN: d1527c0f-1fb0-4b7b-9e34-4ff3a588baa3